fUSD/lending_fUSD_20251226
["ID","MTS","AMOUNT","RATE_DAILY","PERIOD"]
[399870920,1766784640005,-435.45765151,0.00016438,2]
[399870930,1766784645634,-1087.41118798,0.00014389,2]
[399871092,1766785831510,-724.37785151,0.00013262,2]
[399871093,1766785831524,-529.69614849,0.00013262,2]
[399871094,1766785831534,-16.84882176,0.00013262,2]
[399871095,1766785831546,-151.50517824,0.00013262,2]
[399871096,1766785831556,-410.74482076,0.00013453,2]
[399871097,1766785831568,-1504.31002274,0.00013453,2]
[399871098,1766785831577,-3308.62282029,0.00013453,2]
[399871099,1766785831590,-575.5876787,0.00013453,2]
[399871100,1766785831707,-503.42733945,0.00013453,2]
[399871101,1766785831719,-4351.4977131,0.00013453,2]
[399871102,1766785831732,-31.99131173,0.00013453,2]
[399871103,1766785831742,-156.03772242,0.00013453,2]
[399871104,1766785831752,-384.03876585,0.00013532,2]
[399871143,1766785839667,-322.6107,0.00013553,2]
[399871144,1766785839677,-517.59216078,0.00013553,2]
[399871145,1766785839893,-230.13153163,0.00013553,2]
[399871146,1766785839902,-250.0,0.00013553,2]
[399871147,1766785839912,-250.0,0.00013553,2]
[399871148,1766785839921,-146.27846837,0.00013553,2]
[399871175,1766785845747,-103.72153163,0.00013553,2]
[399871176,1766785845758,-250.0,0.00013553,2]
[399871177,1766785845768,-250.0,0.00013553,2]
[399871178,1766785845778,-574.12855637,0.00013553,2]
[399871179,1766785845789,-541.3,0.00013699,2]
[399871180,1766785845799,-1915.05484347,0.00013836,2]
[399871181,1766785845810,-4822.11745614,0.00013836,2]
[399871182,1766785845822,-988.49382925,0.00013836,2]
[399871183,1766785845835,-2960.51557783,0.00013836,2]
[399871184,1766785845846,-1827.06959862,0.00014219,2]
[399871185,1766785845859,-87.98524485,0.00014219,2]
[399871186,1766785845869,-1148.62803915,0.00014219,2]
[399871187,1766785845880,-5911.61489766,0.00014219,2]
[399871188,1766785845891,-456.93,0.00014219,2]
[399871189,1766785845904,-434.405,0.00014219,2]
[399871191,1766785845922,-500.0,0.00014219,2]
[399871208,1766785911634,200.0,0.00030137,120]
[399871229,1766786179603,-200.0,0.00021918,30]
[399871570,1766787031678,-168.355,0.00013461,2]
[399871571,1766787031687,-963.31323526,0.00013461,2]
[399871572,1766787031700,-39.94576474,0.00013461,2]
[399871573,1766787031709,-8824.96969192,0.00013536,2]
[399871574,1766787031721,-412.77728069,0.00013536,2]
[399871575,1766787031734,-1414.9164902,0.00013536,2]
[399871576,1766787031749,-908.31160856,0.00013536,2]
[399871577,1766787031761,-705.89360131,0.00013536,2]
[399871578,1766787031793,-672.07029798,0.00013536,2]
[399871579,1766787031808,-2640.28225799,0.00013536,2]
[399871580,1766787031852,-11270.1521036,0.00013536,2]
[399871611,1766787037750,-294.3711004,0.00013535,2]
[399871612,1766787037763,-205.6288996,0.00013535,2]
[399871613,1766787037773,-217.80555147,0.00013535,2]
[399871614,1766787037783,-279.73657588,0.00013535,2]
[399871615,1766787037792,-346.82897305,0.00013535,2]
[399871616,1766787037811,-153.17102695,0.00013535,2]
[399871617,1766787037821,-317.78151397,0.00013535,2]
[399871618,1766787037831,-1214.49265913,0.00013536,2]
[399871619,1766787037843,-3349.6,0.00013536,2]
[399871620,1766787037869,-829.57102,0.00013536,2]
[399871621,1766787037881,-1370.716068,0.00013536,2]
[399871622,1766787037893,-2522.97143506,0.00013536,2]
[399871635,1766787039856,-9347.2832205,0.00013536,2]
[399871636,1766787039869,-300.35996914,0.00013536,2]
[399871637,1766787039880,-2310.24529464,0.00013536,2]
[399871652,1766787043707,-416.27920025,0.00013536,2]
[399871653,1766787044741,-66657.64910273,0.00013536,2]
[399871654,1766787044754,-25186.3396482,0.00013536,2]
[399871661,1766787045848,-2457.0,0.00013536,2]
[399871663,1766787045861,-884.71,0.00013536,2]
[399872142,1766788231868,-309.1859993,0.00013165,2]
[399872145,1766788231879,-802.607,0.00013265,2]
[399872147,1766788231889,-168.35534987,0.00013265,2]
[399872149,1766788231900,-300.0,0.00013335,2]
[399872151,1766788231909,-277.0,0.00013335,2]
[399872153,1766788231919,-446.0784719,0.00013336,2]
[399872155,1766788231931,-1741.21936042,0.00013336,2]
[399872158,1766788231943,-5740.60952848,0.00013336,2]
[399872160,1766788231953,-157.86513219,0.00013336,2]
[399872176,1766788232209,-2691.95655563,0.00013336,2]
[399872180,1766788232220,-151.0,0.00013433,2]
[399872183,1766788232230,-6476.3807696,0.00013434,2]
[399872186,1766788232240,-545.81560312,0.00013435,2]
[399872189,1766788232250,-152.46388603,0.00013435,2]
[399872192,1766788232260,-500.0,0.00013435,2]
[399872195,1766788232270,-311.00502043,0.00013435,2]
[399872198,1766788232280,-500.0,0.00013435,2]
[399872201,1766788232289,-500.0,0.00013435,2]
[399872203,1766788232299,-500.0,0.00013435,2]
[399872205,1766788232308,-500.0,0.00013435,2]
[399872208,1766788232318,-500.0,0.00013435,2]
[399872211,1766788232343,-500.0,0.00013435,2]
[399872212,1766788232353,-500.0,0.00013435,2]
[399872215,1766788232364,-62755.20437452,0.00013436,2]
[399872217,1766788232377,-1490.50948365,0.00013436,2]
[399872219,1766788232389,-2428.53516988,0.00013436,2]
[399872221,1766788232402,-435.29300942,0.00013436,2]
[399872224,1766788232414,-2850.15,0.00013436,2]
[399872226,1766788232427,-6538.05098953,0.00013436,2]
[399872413,1766788237924,-3001.74636328,0.00013436,2]
[399872414,1766788238043,-711.441254,0.00013436,2]
[399872415,1766788238055,-5626.80000001,0.00013436,2]
[399872416,1766788238067,-1754.81785,0.00013436,2]
[399872417,1766788238103,-5164.11974986,0.00013436,2]
[399872604,1766788239983,-12220.65,0.00013436,2]
[399872606,1766788239996,-1517.46946338,0.00013436,2]
[399872608,1766788240008,-999.21765633,0.00013436,2]
[399872630,1766788240113,-395.63693767,0.00013436,2]
[399872633,1766788240124,-440.8389,0.00013436,2]
[399872650,1766788240284,-911.440902,0.00013436,2]
[399872653,1766788240296,-308.60960215,0.00013436,2]
[399872671,1766788244817,-321.04599644,0.00013436,2]
[399872672,1766788244878,-359.63511905,0.00013436,2]
[399872673,1766788244889,-872.26117996,0.00013436,2]
[399872674,1766788244937,-925.9169098,0.00013436,2]
[399872676,1766788245951,-1110.06940007,0.00013436,2]
[399872681,1766788245968,-12613.98367604,0.00013436,2]
[399872684,1766788246121,-1800.00000001,0.00013436,2]
[399872685,1766788246134,-1098.0,0.00013436,2]
[399872686,1766788246183,-1994.61084385,0.00013436,2]
[399872687,1766788246195,-2228.52430962,0.00013436,2]
[399872688,1766788246206,-1362.65454814,0.00013436,2]
[399872689,1766788246219,-501.46,0.00013436,2]
[399872699,1766788401750,-1373.77519617,0.00013336,2]
[399872700,1766788401771,-1794.63770376,0.00013336,2]
[399872701,1766788401793,-500.0,0.00013428,2]
[399872702,1766788401814,-151.0,0.00013428,2]
[399872703,1766788401835,-500.0,0.00013435,2]
[399872704,1766788401861,-157.86368117,0.00013435,2]
[399872705,1766788401883,-180.0,0.00013435,2]
[399872706,1766788401911,-13224.7234189,0.00013436,2]
[399872755,1766789018132,-476.41830815,0.00012971,2]
[399872756,1766789071849,208.3,0.00014,3]
[399872757,1766789099529,150.0,0.0003,120]
[399872780,1766789429965,999.0,0.00013564,3]
[399872783,1766789431995,-165.66769185,0.00012971,2]
[399872784,1766789432005,-151.0,0.00013133,2]
[399872785,1766789432015,-300.0,0.00013135,2]
[399872786,1766789432025,-218.94048669,0.00013135,2]
[399872787,1766789432046,-452.91224315,0.00013135,2]
[399872788,1766789432076,-528.14727016,0.00013135,2]
[399872789,1766789432086,-180.0,0.00013135,2]
[399872790,1766789432096,-161.93234151,0.00013136,2]
[399872791,1766789432108,-2110.51865849,0.00013136,2]
[399872792,1766789432118,-1562.77840655,0.00013136,2]
[399872793,1766789432130,-533.34640399,0.00013136,2]
[399872794,1766789432217,-5910.81889254,0.00013136,2]
[399872795,1766789432229,-500.0,0.00013136,2]
[399872796,1766789432240,-265.84703492,0.00013136,2]
[399872797,1766789432252,-5266.8308444,0.00013136,2]
[399872798,1766789432263,-542.91191829,0.00013136,2]
[399872799,1766789432275,-1787.83286069,0.00013136,2]
[399872800,1766789432287,-977.19910769,0.00013136,2]
[399872801,1766789432302,-1023.16132915,0.00013136,2]
[399872802,1766789432313,-652.30130565,0.00013136,2]
[399872803,1766789432329,-5426.16089613,0.00013136,2]
[399872804,1766789432339,-151.0,0.00013233,2]
[399872806,1766789432348,-1236.39767658,0.00013233,2]
[399872808,1766789432358,-1196.42513584,0.00013233,2]
[399872810,1766789432368,-241.16381926,0.00013235,2]
[399872812,1766789432379,-225.70348629,0.00013235,2]
[399872814,1766789432388,-500.0,0.00013235,2]
[399872817,1766789432398,-342.575499,0.00013235,2]
[399872819,1766789432407,-479.00055783,0.00013235,2]
[399872821,1766789432416,-5873.7306204,0.00013236,2]
[399872898,1766789438184,-4172.17548279,0.00013236,2]
[399872899,1766789438300,-724.07507002,0.00013236,2]
[399872900,1766789438315,-88338.76345873,0.00013236,2]
[399872922,1766789440220,-300.0,0.00013236,2]
[399872923,1766789440281,-298.56824627,0.00013236,2]
[399872924,1766789440451,-900292.68712179,0.00013236,2]
[399872925,1766789440462,-157.86513217,0.00013333,2]
[399872926,1766789440472,-9390.17371131,0.00013433,2]
[399872927,1766789440482,-3159.61249717,0.00013533,2]
[399872928,1766789440492,-200.0,0.00013536,2]
[399872929,1766789440502,-200.0,0.00013536,2]
[399872930,1766789440512,-151.0,0.00013606,2]
[399872931,1766789440521,-1236.39767652,0.0001364,2]
[399872932,1766789440531,-200.0,0.00013671,2]
[399872933,1766789440543,-151.0,0.00013671,2]
[399872934,1766789440555,-151.0,0.00013671,2]
[399872935,1766789440565,-200.0,0.00013676,2]
[399872936,1766789440574,-514.23,0.00013699,2]
[399872937,1766789440584,-151.0,0.00013699,2]
[399872938,1766789440595,-659.51,0.000138,2]
[399872939,1766789440605,-200.0,0.00013808,2]
[399872940,1766789440616,-200.0,0.00013808,2]
[399872941,1766789440626,-9390.17371127,0.00013818,2]
[399872942,1766789440635,-166.66,0.00013932,2]
[399872943,1766789440645,-200.0,0.00013946,2]
[399872945,1766789440656,-1236.39767652,0.00014048,2]
[399872947,1766789440666,-200.0,0.00014086,2]
[399872949,1766789440675,-1004.126,0.00014099,2]
[399872950,1766789440684,-151.0,0.00014128,2]
[399872951,1766789440694,-612.0,0.0001419,2]
[399872952,1766789440704,-1610.0,0.0001419,2]
[399872953,1766789440714,-1327.0,0.0001419,2]
[399872954,1766789440723,-1263.0,0.0001419,2]
[399872955,1766789440732,-432.0,0.0001419,2]
[399872956,1766789440742,-4998.805,0.0001419,2]
[399872957,1766789440751,-564.0,0.0001419,2]
[399872958,1766789440761,-2430.0,0.0001419,2]
[399872959,1766789440770,-150.0,0.0001419,2]
[399872960,1766789440779,-214.763454,0.0001419,2]
[399872962,1766789440789,-151.0,0.0001419,2]
[399872963,1766789440798,-151.0,0.0001419,2]
[399872964,1766789440807,-151.0,0.0001419,2]
[399872965,1766789440817,-9390.17371127,0.00014203,2]
[399872966,1766789440826,-151.0,0.00014204,2]
[399872967,1766789440835,-151.0,0.00014204,2]
[399872968,1766789440844,-295.39157699,0.00014219,2]
[399872969,1766789440854,-166.66,0.00014225,2]
[399872970,1766789440863,-250.0,0.00014243,2]
[399872971,1766789440873,-977.70907632,0.00014314,2]
[399872972,1766789440883,-3409.0,0.0001437,2]
[399872973,1766789440892,-241.96476764,0.00014373,2]
[399872974,1766789440902,-471.0,0.00014448,2]
[399872975,1766789440911,-1236.39767652,0.00014455,2]
[399872976,1766789440921,-166.66,0.00014519,2]
[399872977,1766789440930,-1196.42513582,0.00014567,2]
[399872978,1766789440940,-9390.17371127,0.00014589,2]
[399872979,1766789440950,-150.0,0.00014592,2]
[399872980,1766789440959,-150.0,0.00014592,2]
[399872981,1766789440969,-150.0,0.00014592,2]
[399872982,1766789440979,-150.0,0.00014592,2]
[399872983,1766789440988,-150.0,0.00014592,2]
[399872984,1766789440998,-150.0,0.00014592,2]
[399872985,1766789441007,-150.0,0.00014592,2]
[399872986,1766789441017,-153.62,0.00014742,2]
[399872987,1766789441026,-151.0,0.00014745,2]
[399872988,1766789441036,-151.0,0.00014745,2]
[399872989,1766789441045,-157.769168,0.00014745,2]
[399872990,1766789441055,-1000.0,0.00014745,2]
[399872991,1766789441065,-157.86513217,0.00014761,2]
[399872992,1766789441075,-289.39,0.00014786,2]
[399872993,1766789441085,-166.66,0.00014812,2]
[399872994,1766789441094,-300.0,0.00014849,2]
[399872995,1766789441103,-301.04,0.00014849,2]
[399872996,1766789441113,-150.0,0.00014849,2]
[399872997,1766789441123,-300.0,0.00014849,2]
[399872998,1766789441134,-1236.39767652,0.00014863,2]
[399872999,1766789441143,-150.0,0.00014918,2]
[399873000,1766789441153,-9390.17371127,0.00014974,2]
[399873001,1766789441163,-420.88,0.00015023,2]
[399873002,1766789441172,-166.66,0.00015105,2]
[399873003,1766789441182,-322.6107,0.000152,2]
[399873004,1766789441191,-500.0,0.000152,2]
[399873005,1766789441201,-496.47127164,0.000152,2]
[399873006,1766789441210,-500.0,0.000152,2]
[399873007,1766789441220,-250.0,0.000152,2]
[399873008,1766789441229,-250.0,0.000152,2]
[399873009,1766789441239,-500.0,0.000152,2]
[399873010,1766789441248,-250.0,0.000152,2]
[399873011,1766789441258,-250.0,0.000152,2]
[399873012,1766789441268,-500.0,0.000152,2]
[399873013,1766789441277,-151.0,0.00015201,2]
[399873014,1766789441287,-1236.39767652,0.0001527,2]
[399873015,1766789441296,-150.0,0.00015288,2]
[399873016,1766789441306,-150.0,0.00015288,2]
[399873017,1766789441316,-230.12358953,0.00015288,2]
[399873018,1766789441326,-150.0,0.00015288,2]
[399873019,1766789441335,-150.00000001,0.00015288,2]
[399873020,1766789441344,-150.00000001,0.00015288,2]
[399873021,1766789441354,-150.00000001,0.00015288,2]
[399873022,1766789441363,-9390.17371127,0.00015359,2]
[399873023,1766789441374,-166.66,0.00015399,2]
[399873024,1766789441384,-151.0,0.00015565,2]
[399873025,1766789441393,-1236.39767652,0.00015678,2]
[399873026,1766789441417,-9390.17371127,0.00015744,2]
[399873027,1766789441426,-501.02283993,0.00015829,2]
[399873028,1766789441436,-1196.42513582,0.00015901,2]
[399873029,1766789441447,-500.0,0.00015973,2]
[399873030,1766789441457,-150.0,0.00016,2]
[399873031,1766789441467,-222369.01235528,0.00016,4]
[399873032,1766789441478,-164.07180515,0.00016001,2]
[399873033,1766789441488,-1236.39767652,0.00016085,2]
[399873034,1766789441498,-653.33262019,0.00016109,2]
[399873035,1766789441507,-9390.17371127,0.0001613,2]
[399873036,1766789441517,-157.86513217,0.00016189,2]
[399873037,1766789441528,-200.0,0.00016306,2]
[399873038,1766789441537,-200.0,0.00016307,2]
[399873039,1766789441550,-450.0,0.00016309,2]
[399873040,1766789441560,-500.0,0.00016438,2]
[399873041,1766789441570,-500.0,0.00016438,2]
[399873042,1766789441580,-500.0,0.00016438,2]
[399873043,1766789441591,-500.0,0.00016438,2]
[399873044,1766789441601,-500.0,0.00016438,2]
[399873045,1766789441611,-500.0,0.00016438,2]
[399873046,1766789441621,-500.0,0.00016438,2]
[399873047,1766789441633,-500.0,0.00016438,2]
[399873048,1766789441643,-500.0,0.00016438,2]
[399873049,1766789441653,-500.0,0.00016438,2]
[399873050,1766789441663,-500.0,0.00016438,2]
[399873051,1766789441673,-500.0,0.00016438,2]
[399873052,1766789441684,-500.0,0.00016438,2]
[399873053,1766789441694,-500.0,0.00016438,2]
[399873054,1766789441704,-578.08525694,0.00016438,2]
[399873055,1766789441714,-500.0,0.00016438,2]
[399873056,1766789441724,-500.0,0.00016438,2]
[399873057,1766789441734,-500.0,0.00016438,2]
[399873058,1766789441743,-500.0,0.00016438,2]
[399873059,1766789441753,-500.0,0.00016438,2]
[399873060,1766789441768,-500.0,0.00016438,2]
[399873061,1766789441778,-500.0,0.00016438,2]
[399873062,1766789441788,-500.0,0.00016438,2]
[399873063,1766789441798,-500.0,0.00016438,2]
[399873064,1766789441808,-500.0,0.00016438,2]
[399873065,1766789441818,-500.0,0.00016438,2]
[399873066,1766789441828,-500.0,0.00016438,2]
[399873067,1766789441838,-499.99999999,0.00016438,2]
[399873068,1766789441847,-150.0,0.00016438,2]
[399873069,1766789441857,-438.2,0.00016438,2]
[399873070,1766789441867,-150.0,0.00016438,2]
[399873071,1766789441876,-9989.14,0.00016438,2]
[399873072,1766789441886,-462.167628,0.00016438,2]
[399873073,1766789441896,-462.167628,0.00016438,2]
[399873074,1766789441906,-462.167628,0.00016438,2]
[399873075,1766789441915,-462.167628,0.00016438,2]
[399873076,1766789441925,-462.167628,0.00016438,2]
[399873077,1766789441935,-462.167628,0.00016438,2]
[399873078,1766789441945,-462.167628,0.00016438,2]
[399873079,1766789441955,-462.167628,0.00016438,2]
[399873080,1766789441964,-462.167628,0.00016438,2]
[399873081,1766789441974,-462.167628,0.00016438,2]
[399873082,1766789441984,-462.167628,0.00016438,2]
[399873083,1766789441994,-462.167628,0.00016438,2]
[399873084,1766789442003,-462.167628,0.00016438,2]
[399873085,1766789442013,-462.167628,0.00016438,2]
[399873086,1766789442024,-462.167628,0.00016438,2]
[399873087,1766789442034,-462.167628,0.00016438,2]
[399873088,1766789442045,-462.167628,0.00016438,2]
[399873089,1766789442055,-462.167628,0.00016438,2]
[399873090,1766789442064,-462.167628,0.00016438,2]
[399873091,1766789442074,-462.167625,0.00016438,2]
[399873092,1766789442084,-1003.677609,0.00016438,2]
[399873093,1766789442094,-1003.677609,0.00016438,2]
[399873094,1766789442104,-1003.677609,0.00016438,2]
[399873095,1766789442114,-1003.677609,0.00016438,2]
[399873096,1766789442130,-1003.677609,0.00016438,2]
[399873097,1766789442140,-1003.677609,0.00016438,2]
[399873098,1766789442150,-1003.677609,0.00016438,2]
[399873099,1766789442161,-1003.677609,0.00016438,2]
[399873100,1766789442171,-1003.677609,0.00016438,2]
[399873101,1766789442182,-1003.677609,0.00016438,2]
[399873102,1766789442192,-1003.677609,0.00016438,2]
[399873103,1766789442202,-1003.677609,0.00016438,2]
[399873104,1766789442212,-1003.677609,0.00016438,2]
[399873105,1766789442222,-1003.677609,0.00016438,2]
[399873106,1766789442233,-1003.677609,0.00016438,2]
[399873107,1766789442243,-1003.677609,0.00016438,2]
[399873108,1766789442253,-1003.677609,0.00016438,2]
[399873109,1766789442264,-1003.677609,0.00016438,2]
[399873110,1766789442274,-1003.677609,0.00016438,2]
[399873111,1766789442285,-1003.677607,0.00016438,2]
[399873112,1766789442296,-151.0,0.00016438,2]
[399873113,1766789442306,-151.0,0.00016438,2]
[399873114,1766789442316,-151.0,0.00016438,2]
[399873115,1766789442326,-151.0,0.00016438,2]
[399873116,1766789442337,-151.0,0.00016438,2]
[399873117,1766789442347,-151.0,0.00016438,2]
[399873118,1766789442357,-151.0,0.00016438,2]
[399873119,1766789442367,-151.0,0.00016438,2]
[399873120,1766789442377,-151.0,0.00016438,2]
[399873121,1766789442387,-151.0,0.00016438,2]
[399873122,1766789442398,-151.0,0.00016438,2]
[399873123,1766789442408,-151.0,0.00016438,2]
[399873124,1766789442418,-151.0,0.00016438,2]
[399873125,1766789442428,-151.0,0.00016438,2]
[399873126,1766789442438,-151.0,0.00016438,2]
[399873127,1766789442448,-151.0,0.00016438,2]
[399873128,1766789442458,-151.0,0.00016438,2]
[399873129,1766789442468,-151.0,0.00016438,2]
[399873130,1766789442483,-237.702889,0.00016438,2]
[399873131,1766789442494,-164.56,0.0001644,2]
[399873132,1766789442505,-164.56,0.0001644,2]
[399873133,1766789442516,-164.56,0.0001644,2]
[399873134,1766789442526,-164.56,0.0001644,2]
[399873135,1766789442536,-164.56,0.0001644,2]
[399873136,1766789442548,-164.56,0.0001644,2]
[399873137,1766789442558,-150.0,0.00016465,2]
[399873138,1766789442568,-150.0,0.00016465,2]
[399873139,1766789442578,-1236.39767652,0.00016493,2]
[399873140,1766789442588,-203.08372064,0.00016493,2]
[399873141,1766789442599,-200.0,0.00016493,2]
[399873142,1766789442610,-9390.17371127,0.00016515,2]
[399873143,1766789442621,-1000.0,0.00016521,2]
[399873144,1766789442631,-334.5472959,0.00016569,2]
[399873145,1766789442642,-1000.0,0.00016588,2]
[399873146,1766789442653,-152.23631951,0.00016614,2]
[399873147,1766789442663,-164.83,0.00016712,2]
[399873148,1766789442673,-9390.17371127,0.000169,2]
[399873149,1766789442683,-398.40831122,0.000169,2]
[399873150,1766789442693,-1236.39767652,0.000169,2]
[399873151,1766789442703,-228.55347716,0.000169,2]
[399873152,1766789442714,-228.26447957,0.000169,2]
[399873153,1766789442724,-2238.14376668,0.000169,2]
[399873154,1766789442734,-194.15320872,0.000169,2]
[399873155,1766789442744,-420.88,0.00016901,2]
[399873156,1766789442753,-200.0,0.00016917,2]
[399873157,1766789442763,-150.0,0.00016973,2]
[399873158,1766789442773,-150.0,0.00016973,2]
[399873159,1766789442783,-300.0,0.00016985,2]
[399873160,1766789442793,-300.0,0.00016985,2]
[399873161,1766789442802,-307.66104653,0.00016985,2]
[399873162,1766789442812,-52187.46,0.00016986,2]
[399873163,1766789442822,-150.00000001,0.00016986,2]
[399873164,1766789442831,-150.0,0.00016986,2]
[399873165,1766789442845,-150.00000045,0.00016986,2]
[399873167,1766789442856,-164.56,0.0001699,2]
[399873169,1766789442865,-164.56,0.0001699,2]
[399873170,1766789442875,-164.56,0.0001699,2]
[399873171,1766789442884,-3000.0,0.00016999,2]
[399873172,1766789442894,-300.0,0.00016999,2]
[399873173,1766789442904,-2462339.7421197,0.00017,2]
[399873177,1766789444088,-3891.73401945,0.00017,2]
[399873178,1766789444100,-2379.12870126,0.00017,2]
[399873179,1766789444112,-10007.97303453,0.00017,2]
[399873180,1766789445269,-36643.78171981,0.00017,2]
[399873190,1766789446172,-3294.0,0.00017,2]
[399873192,1766789446186,-1251.4000001,0.00017,2]
[399873193,1766789446199,-30178.22139284,0.00017,2]
[399873194,1766789446209,-87346.77861003,0.00017,2]
[399873195,1766789446342,-785.98369254,0.00017,2]
[399873210,1766789497995,-167.46515835,0.00012871,2]
[399873211,1766789499582,-165.52982588,0.00012871,2]
[399873212,1766789504728,1598.0,0.0003013,120]
[399873213,1766789505506,1828.0,0.0003013,120]
[399873214,1766789506798,687.0,0.0003013,120]
[399873215,1766789507586,394.0,0.0003013,120]
[399873216,1766789508372,1019.0,0.0003013,120]
[399873217,1766789509170,1504.0,0.0003013,120]
[399873218,1766789509975,1630.0,0.0003013,120]
[399873219,1766789514570,169.0,0.0003013,120]
[399873220,1766789515852,320.0,0.0003013,120]
[399873221,1766789516655,308.0,0.0003013,120]
[399873222,1766789517425,154.0,0.0003013,120]
[399873223,1766789518198,257.0,0.0003013,120]
[399873224,1766789519003,464.0,0.0003013,120]
[399873225,1766789519810,426.0,0.0003013,120]
[399873226,1766789520598,410.0,0.0003013,120]
[399873227,1766789558431,-167.00501577,0.00012871,2]
[399873228,1766789558453,-28.63765477,0.00012926,2]
[399873229,1766789563799,639.0,0.0003013,120]
[399873230,1766789564622,752.0,0.0003013,120]
[399873231,1766789566826,421.0,0.0003013,120]
[399873232,1766789567609,399.0,0.0003013,120]
[399873233,1766789568397,268.0,0.0003013,120]
[399873235,1766789622395,841.0,0.0003013,120]
[399873236,1766789623227,1603.0,0.0003013,120]
[399873237,1766789625859,172.0,0.0003013,120]
[399873238,1766790009125,-182.62217238,0.00012926,2]
[399873239,1766790009151,-225.75618175,0.00012926,2]
[399873263,1766790563076,-30.24381825,0.00012926,2]
[399873264,1766790563103,-405.42184074,0.00012936,2]
[399873265,1766790566653,-367.06154111,0.00012936,2]
[399873266,1766790632223,-25.13337537,0.00012936,2]
[399873267,1766790632235,-265.88268162,0.00013035,2]
[399873268,1766790632249,-34.11731838,0.00013035,2]
[399873269,1766790632261,-300.0,0.00013035,2]
[399873270,1766790632272,-61.41855928,0.00013035,2]
[399873271,1766790632285,-1138.58144072,0.00013035,2]
[399873272,1766790632302,-21383.91855928,0.00013036,2]
[399873273,1766790632316,-984.13374169,0.00013036,2]
[399873274,1766790632335,-882.31924771,0.00013036,2]
[399873275,1766790632374,-534.06656813,0.00013036,2]
[399873295,1766790638296,-232.77577013,0.00013035,2]
[399873296,1766790638308,-500.0,0.00013035,2]
[399873297,1766790638319,-524.29406245,0.00013035,2]
[399873298,1766790638330,-346.94216913,0.00013035,2]
[399873299,1766790638341,-500.0,0.00013035,2]
[399873300,1766790638352,-500.0,0.00013035,2]
[399873301,1766790638362,-500.0,0.00013035,2]
[399873302,1766790638374,-500.0,0.00013035,2]
[399873303,1766790638385,-604.86013519,0.00013035,2]
[399873304,1766790638395,-39583.62786311,0.00013036,2]
[399873305,1766790638412,-85921.99999894,0.00013036,2]
[399873306,1766790638475,-4219.49174464,0.00013036,2]
[399873307,1766790640406,-320.80564374,0.00013036,2]
[399873308,1766790640420,-856.44542078,0.00013036,2]
[399873309,1766790640465,-788.69529083,0.00013036,2]
[399873310,1766790641310,-844524.49592115,0.00013036,2]
[399873311,1766790641320,-164.07180515,0.00013036,2]
[399873312,1766790641330,-2995.04124879,0.00013036,2]
[399873313,1766790641340,-9566.77227478,0.00013036,2]
[399873314,1766790641350,-1000.0,0.00013136,2]
[399873315,1766790641359,-2995.04124879,0.00013465,2]
[399873316,1766790641370,-9566.77227469,0.00013465,2]
[399873317,1766790641380,-2995.04124879,0.00013895,2]
[399873318,1766790641392,-9566.77227469,0.00013895,2]
[399873319,1766790641402,-4201.2352844,0.0001411,2]
[399873320,1766790641411,-420.0,0.00014294,2]
[399873321,1766790641421,-420.0,0.00014294,2]
[399873322,1766790641431,-2995.04124879,0.00014324,2]
[399873323,1766790641441,-9566.77227469,0.00014324,2]
[399873324,1766790641451,-1680.0,0.00014338,2]
[399873325,1766790641460,-500.0,0.00014373,2]
[399873326,1766790641470,-276.52041223,0.00014373,2]
[399873327,1766790641480,-339.47657605,0.00014373,2]
[399873328,1766790641490,-500.0,0.00014373,2]
[399873329,1766790641499,-500.0,0.00014373,2]